bitfinex-derivatives/quotes_ETHF0:USTF0_20250602
["timestamp","ask_amount","ask_price","bid_price","bid_amount"]
[1748876545352,20.3397,2530.7,2530.4,4.475]
[1748876545651,21.12968,2530.7,2530.6,0.79001]
[1748876545848,19.089,2530.7,2530.6,0.79001]
[1748876546850,0.79001,2530.6,2530.5,3.6729]
[1748876547052,20.4237,2530.7,2530.5,3.6729]
[1748876547250,0.79001,2530.6,2530.5,3.6729]
[1748876547449,1.3347,2530.6,2530.5,0.4651]
[1748876547645,3.2078,2530.9,2530.6,0.79]
[1748876547845,19.87697,2530.8,2530.6,0.79]
[1748876548048,0.78998,2530.7,2530.5,1.25512]
[1748876548555,21.21168,2530.8,2530.5,0.4651]
[1748876548759,0.78999,2530.7,2530.5,0.4651]
[1748876549054,21.21167,2530.8,2530.6,0.79001]
[1748876549253,0.78998,2530.7,2530.6,0.79001]
[1748876549454,0.78998,2530.7,2530.5,1.25513]
[1748876549656,20.4217,2530.8,2530.5,0.4651]
[1748876549954,1.97467,2531.1,2530.5,0.4651]
[1748876550151,1.2861,2531.0,2530.5,0.4651]
[1748876550356,7.05576585,2531.2,2530.8,0.78993]
[1748876550544,5.1882,2531.2,2530.7,1.97494]
[1748876550751,0.7899,2531.0,2530.6,5.18283]
[1748876550952,19.085,2531.1,2530.7,0.78996]
[1748876551153,0.78995,2530.8,2530.7,0.78996]
[1748876551364,0.78994,2530.9,2530.7,0.78996]
[1748876551654,1.2861,2531.0,2530.6,3.99779]
[1748876551955,0.78996,2530.8,2530.7,0.78997]
[1748876552155,0.78998,2530.7,2530.6,3.2078]
[1748876552349,0.78998,2530.7,2530.6,0.79001]
[1748876553162,1.38268,2530.7,2530.6,0.79001]
[1748876553364,0.5927,2530.7,2530.6,0.79001]
[1748876553859,1.38268,2530.7,2530.6,0.79001]
[1748876554755,0.79001,2530.6,2530.5,1.25513]
[1748876555056,0.79001,2530.6,2530.5,0.4651]
[1748876555448,0.79001,2530.6,2530.5,1.25515]
[1748876555756,0.79001,2530.6,2530.5,0.4651]
[1748876556656,2.14131,2530.6,2530.5,0.4651]
[1748876557055,2.83231,2530.6,2530.5,0.4651]
[1748876557861,0.79007,2530.5,2530.3,0.00592101]
[1748876558062,0.79008,2530.4,2530.3,0.79600101]
[1748876558260,2.14131,2530.6,2530.5,0.79004]
[1748876558561,19.08,2530.6,2530.5,0.79003]
[1748876558761,19.87003,2530.6,2530.5,0.79003]
[1748876559162,19.08,2530.6,2530.5,0.79003]
[1748876559562,19.87001,2530.6,2530.5,0.79003]
[1748876559964,19.86801,2530.6,2530.5,0.79003]
[1748876560166,0.79008,2530.4,2530.3,4.00381101]
[1748876560465,0.79008,2530.4,2530.3,0.00592101]
[1748876561860,0.79007,2530.4,2530.3,0.00592101]
[1748876562162,0.79007,2530.4,2530.3,0.79601101]
[1748876562367,0.79007,2530.4,2530.3,4.00381101]
[1748876562671,0.79007,2530.4,2530.3,3.21372101]
[1748876562864,0.79007,2530.4,2530.3,0.00592101]
[1748876564261,19.86507,2530.4,2530.3,0.00592101]
[1748876566064,19.86307,2530.4,2530.3,0.00592101]
[1748876569962,1.2898,2530.6,2530.3,0.00592101]
[1748876570172,3.89756585,2531.0,2530.3,5.18894101]
[1748876570381,19.071,2530.9,2530.6,0.78999]
[1748876570563,0.78998,2530.7,2530.6,0.78999]
[1748876570764,0.78998,2530.7,2530.6,1.2532]
[1748876571166,0.78998,2530.7,2530.6,2.04321]
[1748876571468,0.78998,2530.7,2530.6,2.04319]
[1748876571663,1.38268,2530.7,2530.6,2.04319]
[1748876571868,1.38268,2530.7,2530.6,1.2532]
[1748876572377,0.79001,2530.6,2530.5,1.4791]
[1748876572671,0.79001,2530.6,2530.5,0.74]
[1748876572875,2.02441,2530.6,2530.5,0.74]
[1748876574170,2.02441,2530.6,2530.3,0.00592101]
[1748876574171,0.79007,2530.4,2530.3,0.00592101]
[1748876574471,0.79023,2529.9,2529.8,0.7359]
[1748876574675,0.79028,2529.8,2529.7,0.79029]
[1748876574875,0.79026,2529.8,2529.7,0.79027]
[1748876575170,19.85623,2529.9,2529.8,0.79026]
[1748876575376,19.066,2529.9,2529.8,0.79026]
[1748876575579,19.85623,2529.9,2529.8,3.99806]
[1748876576273,19.85623,2529.9,2529.8,3.2078]
[1748876576477,0.79029,2529.7,2529.6,1.99252101]
[1748876576674,0.79029,2529.7,2529.6,1.47672101]
[1748876576975,0.79028,2529.8,2529.7,0.79027]
[1748876577176,21.13975,2529.9,2529.8,0.79026]
[1748876577677,0.79027,2529.8,2529.7,0.79027]
[1748876577876,0.79029,2529.7,2529.6,2.84280101]
[1748876578077,2.07378,2529.8,2529.7,0.79029]
[1748876578976,1.2835,2529.8,2529.7,0.79029]
[1748876579174,1.2835,2529.8,2529.6,2.05252101]
[1748876579175,19.064,2529.8,2529.6,2.05252101]
[1748876579375,19.064,2529.8,2529.7,2.15639]
[1748876579578,19.85426,2529.8,2529.7,2.15639]
[1748876579769,19.064,2529.8,2529.7,2.15639]
[1748876580079,19.85426,2529.8,2529.7,2.15639]
[1748876580482,19.85426,2529.8,2529.7,0.79029]
[1748876581070,19.064,2529.8,2529.7,0.79029]
[1748876581275,19.05743969,2529.8,2529.7,0.79029]
[1748876581479,19.84769969,2529.8,2529.7,0.79029]
[1748876581675,0.79029,2529.7,2529.6,0.00592101]
[1748876581977,2.12329,2529.7,2529.6,0.00592101]
[1748876582369,0.79041,2529.3,2529.2,3.2078]
[1748876582971,0.79041,2529.3,2529.2,3.99824]
[1748876583173,0.79041,2529.4,2529.3,0.79041]
[1748876583376,19.85041,2529.4,2529.3,0.79041]
[1748876583876,0.79041,2529.3,2529.2,3.99822]
[1748876584273,0.79041,2529.3,2529.2,3.2078]
[1748876584581,19.85141,2529.3,2529.2,3.2078]
[1748876584776,19.85141,2529.3,2529.2,3.99824]
[1748876585083,19.85041,2529.3,2529.2,3.27849789]
[1748876585374,19.85041,2529.3,2529.2,4.06893789]
[1748876586574,19.84941,2529.3,2529.2,4.06893789]
[1748876586876,19.84841,2529.3,2529.2,4.06893789]
[1748876587177,0.79041,2529.3,2529.2,0.07069789]
[1748876587372,19.84841,2529.3,2529.2,0.86113789]
[1748876587572,0.79037,2529.5,2529.4,0.79035]
[1748876587770,1.97566,2529.8,2529.3,1.97604]
[1748876587771,1.2814,2529.8,2529.3,1.97604]
[1748876587971,3.47136585,2530.0,2529.3,1.3249]
[1748876587972,3.15366585,2530.0,2529.3,1.3249]
[1748876588174,0.79038,2529.4,2529.3,2.1153]
[1748876588370,19.84838,2529.4,2529.3,0.7904]
[1748876588774,19.84838,2529.4,2529.3,2.1153]
[1748876589777,0.79038,2529.4,2529.3,2.1153]
[1748876589978,0.79038,2529.4,2529.2,0.07069789]
[1748876589979,19.057,2529.4,2529.2,0.07069789]
[1748876590277,0.79037,2529.5,2529.4,0.79035]
[1748876590479,19.84637,2529.5,2529.4,0.79035]
[1748876590682,0.79041,2529.3,2529.2,3.27849789]
[1748876590876,0.79041,2529.3,2529.2,0.86113789]
[1748876591275,0.79041,2529.3,2529.2,0.07069789]
[1748876591675,2.13671,2529.3,2529.2,0.07069789]
[1748876592083,0.79044,2529.2,2529.1,0.00592101]
[1748876592378,2.04804,2529.2,2529.1,0.00592101]
[1748876592983,5.25584,2529.2,2529.1,0.00592101]
[1748876594782,24.30984,2529.2,2529.1,0.00592101]
[1748876595186,21.10204,2529.2,2529.1,0.00592101]
[1748876595486,21.10104,2529.2,2529.1,0.00592101]
[1748876596484,2.65888,2529.4,2529.1,0.00592101]
[1748876596787,0.79044,2529.2,2529.1,0.00592101]
[1748876597783,2.06874,2529.2,2529.1,0.00592101]
[1748876598387,21.11974,2529.2,2529.1,0.00592101]
[1748876598680,24.32754,2529.2,2529.1,0.00592101]
[1748876598888,21.71274,2529.2,2529.1,0.00592101]
[1748876599283,21.71174,2529.2,2529.1,0.00592101]
[1748876600181,21.71174,2529.2,2529.1,0.0766189]
[1748876601184,21.71174,2529.2,2529.1,0.00592101]
[1748876602286,21.71174,2529.2,2529.1,0.0766189]
[1748876602986,2.66174,2529.2,2529.1,0.0766189]
[1748876603194,21.70974,2529.2,2529.1,0.0766189]
[1748876603491,19.64,2529.2,2529.1,0.8670989]
[1748876603693,0.593,2529.2,2529.1,0.8670989]
[1748876603985,0.593,2529.2,2529.1,9.0748989]
[1748876604285,0.79033,2529.6,2529.5,0.79032]
[1748876604483,19.046,2529.6,2529.5,3.99815]
[1748876604880,19.046,2529.6,2529.5,3.2078]
[1748876605081,19.046,2529.6,2529.5,3.99815]
[1748876605281,19.83632,2529.6,2529.5,3.99815]
[1748876605481,0.79035,2529.5,2529.4,2.03846]
[1748876605689,19.046,2529.6,2529.5,0.79035]
[1748876605894,19.046,2529.6,2529.5,2.03845]
[1748876606282,19.83632,2529.6,2529.5,1.2481]
[1748876606690,19.046,2529.6,2529.2,4.6061]
[1748876606877,0.79037,2529.5,2529.4,0.79038]
[1748876607383,19.83337,2529.5,2529.4,0.79038]
[1748876607880,0.79038,2529.4,2529.3,2.03849]
[1748876608087,0.79041,2529.3,2529.2,3.2078]
[1748876608385,0.79041,2529.4,2529.3,0.79039]
[1748876608591,0.79033,2529.6,2529.5,0.79035]
[1748876608888,1.3832,2529.7,2529.6,0.79032]
[1748876609090,19.6339,2529.7,2529.3,1.9706]
[1748876609285,0.79038,2529.5,2529.4,0.79036]
[1748876609479,19.83034,2529.6,2529.5,0.79033]
[1748876609688,19.04,2529.6,2529.4,1.2448]
[1748876609884,1.3832,2529.7,2529.6,0.79032]
[1748876610092,0.79035,2529.6,2529.5,0.79034]
[1748876610287,20.42321,2529.7,2529.6,0.79032]
[1748876610488,0.79035,2529.6,2529.5,0.79033]
[1748876610687,0.79035,2529.6,2529.5,3.99813]
[1748876610895,0.5929,2529.7,2529.6,0.79032]
[1748876611192,19.6319,2529.7,2529.5,3.2078]
[1748876611386,0.79032,2529.6,2529.5,3.99813]
[1748876611788,0.79035,2529.5,2529.4,0.79036]
[1748876612386,0.79038,2529.4,2529.3,0.7258]
[1748876612589,0.79042,2529.3,2529.2,3.2078]
[1748876613587,0.79042,2529.3,2529.2,3.99825]
[1748876615494,0.79042,2529.3,2529.2,3.27849789]
[1748876616794,0.79042,2529.3,2529.2,4.06894789]
[1748876617604,0.79042,2529.3,2529.2,3.27849789]
[1748876618406,0.79042,2529.3,2529.2,0.07069789]
[1748876619198,0.79042,2529.3,2529.2,0.86114789]
[1748876620098,0.79042,2529.3,2529.2,0.07069789]
[1748876621196,0.79042,2529.3,2529.2,0.86114789]
[1748876621388,19.82042,2529.3,2529.2,0.86114789]
[1748876621588,19.82042,2529.3,2529.2,0.07069789]
[1748876622000,0.79042,2529.3,2529.2,0.86114789]
[1748876622389,19.81942,2529.3,2529.2,2.18274789]
[1748876622687,19.81942,2529.3,2529.2,1.39229789]
[1748876623090,20.41242,2529.3,2529.2,1.39229789]
[1748876623801,20.41242,2529.3,2529.2,2.18274789]
[1748876623993,1.38342,2529.3,2529.2,2.18274789]
[1748876624187,20.41142,2529.3,2529.2,2.18274789]
[1748876624395,20.41142,2529.3,2529.2,0.07069789]
[1748876626501,20.41142,2529.3,2529.2,0.86114789]
[1748876626502,20.40942,2529.3,2529.2,0.86114789]
[1748876627003,20.40942,2529.3,2529.2,0.07069789]
[1748876627200,19.619,2529.3,2528.9,3.2078]
[1748876627395,0.79057,2528.8,2528.7,1.84105268]
[1748876628305,2.09507,2528.8,2528.7,1.84105268]
[1748876629605,2.09507,2528.8,2528.7,1.91175057]
[1748876630402,0.79076,2528.2,2528.0,3.2078]
[1748876630709,0.79079,2528.1,2528.0,1.18351986]
[1748876630900,2.10639,2528.1,2528.0,1.18351986]
[1748876631503,0.79082,2528.0,2527.9,0.79085]
[1748876631811,2.10644,2528.0,2527.9,0.79085]
[1748876632108,2.10644,2528.0,2527.7,3.9987]
[1748876632109,0.79088,2527.8,2527.7,3.9987]
[1748876632311,0.79088,2527.9,2527.8,0.79088]
[1748876632496,0.79088,2527.9,2527.7,3.2078]
[1748876632497,0.79083,2528.0,2527.9,0.79082]
[1748876632807,19.024,2527.9,2527.8,0.79088]
[1748876633309,19.023,2527.9,2527.8,0.79088]
[1748876633504,19.023,2527.9,2526.7,1.57665131]
[1748876633505,27.2308,2527.9,2526.7,1.57665131]
[1748876633708,0.79123,2526.7,2526.6,1.57665131]
[1748876633911,0.79123,2526.7,2526.2,7.08857078]
[1748876633912,0.79135,2526.3,2526.2,7.08857078]
[1748876634412,0.79135,2526.3,2526.2,3.94242978]
[1748876634607,1.3361,2526.6,2526.2,3.2078]
[1748876634803,2.13165,2526.3,2526.1,7.87997078]
[1748876635004,0.79139,2526.2,2526.1,3.94242978]
[1748876635503,1.3403,2526.4,2526.1,3.94242978]
[1748876635702,4.6261,2526.8,2526.2,3.2078]
[1748876635905,19.81931,2526.5,2526.2,3.2078]
[1748876636108,19.028,2526.5,2526.2,3.2078]
[1748876636304,19.028,2526.5,2526.3,0.79132]
[1748876636508,19.028,2526.5,2526.4,0.79132]
[1748876636705,19.028,2526.7,2526.2,5.1862]
[1748876636910,19.028,2526.7,2526.4,0.79129]
[1748876637102,0.79128,2526.6,2526.4,0.79129]
[1748876637307,19.028,2526.7,2526.3,0.664]
[1748876637504,19.81924,2526.7,2526.5,0.79128]
[1748876637711,19.028,2526.7,2526.3,0.664]
[1748876637902,19.028,2526.7,2526.6,0.79126]
[1748876638108,19.028,2526.7,2526.2,3.2078]
[1748876638307,0.79135,2526.3,2526.2,3.2078]
[1748876638509,1.97833,2526.4,2525.7,3.2078]
[1748876638812,0.79148,2525.9,2525.7,3.2078]
[1748876639018,0.79151,2525.8,2525.7,3.2078]
[1748876639210,19.03,2525.9,2525.3,4.5349]
[1748876639515,1.3015,2525.8,2525.3,3.2078]
[1748876639714,0.79155,2525.7,2525.5,0.79159]
[1748876639915,0.79162,2525.5,2525.3,3.99945]
[1748876640123,1.3015,2525.6,2525.3,3.2078]
[1748876640309,0.79155,2525.7,2525.5,0.79159]
[1748876640508,22.2378,2525.8,2525.4,3.2078]
[1748876640711,19.03,2525.8,2525.4,3.2078]
[1748876641011,0.79159,2525.6,2525.5,0.7916]
[1748876641214,19.03,2525.8,2525.5,0.7916]
[1748876641416,0.79158,2525.6,2525.4,3.2078]
[1748876641609,0.7916,2525.5,2525.4,3.2078]
[1748876642004,19.03,2525.8,2525.4,3.2078]
[1748876642312,0.79151,2525.9,2525.7,0.79154]
[1748876642515,0.79156,2525.7,2525.5,0.79158]
[1748876642715,0.79157,2525.6,2525.5,0.79158]
[1748876643010,2.15916,2526.0,2525.4,5.18689]
[1748876643219,22.2408,2526.2,2525.4,3.2078]
[1748876643410,0.79159,2525.6,2525.5,0.79159]
[1748876643606,0.79156,2525.7,2525.6,0.79157]
[1748876643816,1.3677,2526.1,2525.5,1.97902]
[1748876644009,3.8684,2526.8,2526.0,3.2078]
[1748876644312,19.032,2527.0,2526.6,3.2078]
[1748876644511,0.79119,2526.9,2526.8,0.79119]
[1748876644719,19.032,2527.0,2526.7,1.3079]
[1748876644917,0.7912,2526.8,2526.7,1.3079]
[1748876645111,19.035,2527.0,2526.7,1.3079]
[1748876645311,0.79123,2526.7,2526.6,3.99904]
[1748876645617,19.035,2527.0,2526.6,4.5157]
[1748876645812,19.035,2527.0,2526.7,1.3079]
[1748876645813,0.79121,2526.8,2526.7,1.3079]
[1748876646014,0.79127,2526.6,2526.5,0.79128]
[1748876646318,1.97798,2526.9,2526.3,3.2078]
[1748876646521,0.79131,2526.5,2526.4,2.09921]
[1748876646713,0.79131,2526.5,2526.4,1.3079]
[1748876647011,0.79131,2526.5,2526.4,2.09922]
[1748876647218,0.79128,2526.6,2526.5,0.79128]
[1748876647620,19.82423,2526.7,2526.6,0.79124]
[1748876648012,0.79127,2526.6,2526.5,0.79127]
[1748876648312,19.033,2526.7,2526.6,0.79126]
[1748876648313,19.82424,2526.7,2526.6,0.79126]
[1748876649021,0.79128,2526.6,2526.5,0.79128]
[1748876649718,19.033,2526.7,2526.4,1.3079]
[1748876649719,19.033,2526.7,2526.6,0.79126]
[1748876649918,19.82423,2526.7,2526.6,0.79126]
[1748876650117,0.79127,2526.6,2526.5,0.79127]
[1748876650317,19.82426,2526.7,2526.6,0.79126]
[1748876650520,21.01008,2526.7,2526.2,0.00398795]
[1748876650714,0.79135,2526.3,2526.2,0.00398795]
[1748876651019,1.2615,2526.6,2526.5,0.79129]
[1748876651220,4.00493319,2526.8,2526.7,0.79123]
[1748876651416,23.03693319,2526.8,2526.7,0.79123]
[1748876651618,20.29943319,2526.8,2526.3,4.5024]
[1748876651816,20.29943319,2526.8,2526.3,5.29373]
[1748876651817,0.79132,2526.4,2526.3,5.29373]
[1748876652014,0.79132,2526.4,2526.3,3.99913]
[1748876652325,0.79132,2526.4,2526.3,3.2078]
[1748876652818,0.79135,2526.3,2526.2,0.00398795]
[1748876653023,5.25395,2526.3,2526.2,0.00398795]
[1748876653720,0.79142,2526.1,2526.0,0.07069789]
[1748876654017,0.79142,2526.1,2526.0,0.86214789]
[1748876654424,0.79142,2526.1,2526.0,0.07069789]
[1748876654717,0.7914,2526.2,2526.1,0.79139]
[1748876654913,0.79142,2526.1,2526.0,0.86211789]
[1748876655323,19.6248,2526.1,2526.0,0.86211789]
[1748876655621,0.5938,2526.1,2526.0,0.86211789]
[1748876655822,0.58776613,2526.1,2526.0,0.86211789]
[1748876656322,2.62638613,2526.1,2526.0,0.86214789]
[1748876656619,2.62638613,2526.1,2526.0,0.07069789]
[1748876657211,2.62638613,2526.1,2526.0,0.86214789]
[1748876657927,2.62638613,2526.1,2526.0,0.07069789]
[1748876658822,0.58776613,2526.1,2526.0,0.07069789]
[1748876659021,1.37918613,2526.1,2526.0,0.86214789]
[1748876659224,20.41018613,2526.1,2526.0,0.86214789]
[1748876659426,20.41018613,2526.1,2526.0,0.07069789]
[1748876659622,20.41018613,2526.1,2526.0,1.42689789]
[1748876660132,20.41018613,2526.1,2526.0,2.21834789]
[1748876660325,20.41018613,2526.1,2526.0,1.42689789]
[1748876660823,0.58776613,2526.1,2526.0,2.21834789]
[1748876661027,0.58776613,2526.1,2526.0,7.21834789]
[1748876661217,3.2078,2526.7,2526.0,7.21834789]
[1748876661218,0.79126,2526.6,2526.5,0.79129]
[1748876661432,0.79129,2526.5,2526.4,3.2078]
[1748876661823,0.79129,2526.5,2526.4,3.99909]
[1748876662637,0.79129,2526.5,2526.4,3.2078]
[1748876663028,0.79128,2526.6,2526.5,0.79128]
[1748876663227,0.79129,2526.5,2526.4,3.99911]
[1748876663532,0.79129,2526.5,2526.4,3.2078]
[1748876663719,19.031,2526.6,2526.4,3.2078]
[1748876663926,19.031,2526.6,2526.5,2.09919]
[1748876664329,0.5936,2526.7,2526.5,2.09919]
[1748876664330,20.41485,2526.7,2526.6,0.79126]
[1748876664523,19.6236,2526.7,2526.6,0.79126]
[1748876664724,0.5936,2526.7,2526.6,0.79126]
[1748876665021,1.38483,2526.7,2526.6,0.79126]
[1748876665221,0.79126,2526.6,2526.5,2.09917]
[1748876665423,1.38485,2526.7,2526.6,0.79126]
[1748876666435,0.5936,2526.7,2526.6,0.79126]
[1748876666620,1.38483,2526.7,2526.6,0.79126]
[1748876667024,0.5936,2526.7,2526.6,0.79126]
[1748876667230,1.38483,2526.7,2526.6,0.79126]
[1748876667428,0.5936,2526.7,2526.6,0.79126]
[1748876667934,0.5936,2526.7,2526.6,5.79126]
[1748876669534,0.5936,2526.7,2526.6,5.85996]
[1748876671337,1.38483,2526.7,2526.6,5.85996]
[1748876671529,0.79129,2526.6,2526.5,0.79126]
[1748876671831,2.57168,2526.7,2526.3,4.414]
[1748876672028,0.79131,2526.5,2526.4,0.79129]
[1748876672739,0.79132,2526.4,2526.3,4.414]
[1748876674032,0.79132,2526.4,2526.3,5.20535]
[1748876674934,0.79132,2526.4,2526.3,0.79135]
[1748876675137,0.79135,2526.3,2526.2,2.727]
[1748876675439,0.79145,2526.1,2525.9,4.414]
[1748876675630,0.79145,2526.1,2525.7,5.18665]
[1748876675631,0.79145,2526.1,2526.0,0.79143]
[1748876676225,0.79143,2526.1,2526.0,0.79142]
[1748876676431,2.1184,2526.2,2526.1,0.79142]
[1748876676634,0.79145,2526.1,2526.0,0.79142]
[1748876677032,0.79145,2526.0,2525.9,2.09206]
[1748876677433,0.79144,2526.1,2526.0,0.79142]
[1748876677645,2.11841,2526.2,2526.1,0.79142]
[1748876677830,2.34686998,2526.6,2526.1,1.97855]
[1748876678131,19.81433,2526.5,2526.4,0.79131]
[1748876679435,19.023,2526.5,2526.2,2.0224]
[1748876679739,0.79135,2526.4,2526.3,1.3282]
[1748876679938,0.79135,2526.4,2526.3,2.11955]
[1748876680139,0.79135,2526.4,2526.3,1.3282]
[1748876680339,0.79142,2526.1,2526.0,8.40624]
[1748876680537,0.79148,2525.9,2525.8,1.9812]
[1748876680841,0.79148,2526.0,2525.9,0.79145]
[1748876681042,0.79143,2526.1,2526.0,0.79141]
[1748876681435,0.79148,2526.0,2525.9,0.79145]
[1748876681635,0.79148,2526.0,2525.9,2.06395]
[1748876681838,0.79148,2525.9,2525.8,9.11499]
[1748876682041,0.79148,2525.9,2525.8,3.2078]
[1748876682538,0.79154,2525.7,2525.6,1.2725]
[1748876682744,0.79157,2525.6,2525.5,1.45049]
[1748876682936,0.79157,2525.6,2525.5,2.72299]
[1748876684138,19.81255,2525.7,2525.6,0.79157]
[1748876684340,19.021,2525.7,2525.6,0.79157]
[1748876685039,19.81254,2525.7,2525.6,3.99937]
[1748876685240,19.81254,2525.7,2525.6,0.79157]
[1748876685443,19.021,2525.7,2525.2,3.2078]
[1748876685644,1.3259,2525.6,2525.2,3.2078]
[1748876685843,0.79167,2525.3,2525.2,3.99948]
[1748876686847,0.79167,2525.3,2524.7,1.56926638]
[1748876686848,0.79179,2524.9,2524.7,1.56926638]
[1748876687145,0.79179,2524.9,2524.8,0.79181]
[1748876687347,0.79188,2524.7,2524.6,0.79187]
[1748876687543,2.08675,2524.8,2524.7,0.79186]
[1748876687747,1.2949,2524.8,2524.7,0.79186]
[1748876688241,19.021,2524.9,2524.8,0.79182]
[1748876688450,3.2078,2525.0,2524.8,0.79182]
[1748876688451,1.2949,2525.1,2525.0,0.79176]
[1748876688751,20.3149,2525.1,2525.0,0.79176]
[1748876688946,5.55466998,2525.3,2525.2,0.7917]
[1748876689146,23.01947,2525.3,2525.2,0.7917]
[1748876689346,0.7917,2525.2,2525.1,0.79171]
[1748876689543,1.3703,2525.2,2525.1,0.79171]
[1748876689744,20.3923,2525.2,2525.1,0.79171]
[1748876689948,20.3923,2525.2,2524.6,1.97973]
[1748876690152,20.3923,2525.2,2524.6,3.35143]
[1748876690345,0.594,2525.1,2524.6,1.3717]
[1748876690551,0.79182,2524.9,2524.8,0.79182]
[1748876690854,4.5781,2525.0,2524.7,5.20083]
[1748876690855,0.79182,2524.8,2524.7,5.20083]
[1748876691049,2.16212,2524.8,2524.7,5.20083]
[1748876691250,1.3703,2524.8,2524.7,5.20083]
[1748876691754,3.99958,2525.0,2524.9,0.79179]
[1748876691954,0.79181,2524.9,2524.8,0.7918]
[1748876692254,1.3703,2524.9,2524.8,0.7918]
[1748876692663,3.2078,2525.0,2524.9,0.79179]
[1748876692863,0.594,2525.1,2525.0,0.79176]
[1748876693462,0.594,2525.1,2525.0,8.99956]
[1748876693670,0.00593319,2525.5,2525.4,0.79164]
[1748876693963,0.00593319,2525.5,2525.4,5.20064]
[1748876694473,0.00593319,2525.5,2525.4,10.20064]
[1748876694775,0.00593319,2525.5,2525.4,12.10034]
[1748876695165,2.34686998,2525.8,2525.7,0.79154]
[1748876695369,26.70802998,2526.0,2525.9,0.79148]
[1748876695671,26.70801998,2526.0,2525.9,0.79148]
[1748876696277,25.91656998,2526.0,2525.9,0.79148]
[1748876696570,26.70801998,2526.0,2525.9,0.79148]
[1748876696873,25.91656998,2526.0,2525.9,0.79148]
[1748876697171,24.36115,2526.0,2525.9,0.79148]
[1748876697368,24.36117,2526.0,2525.9,0.79148]
[1748876697574,23.5697,2526.0,2525.9,0.79148]
[1748876697780,0.79151,2525.8,2525.7,0.00593319]
[1748876698074,0.7915,2525.9,2525.8,0.79149]
[1748876698372,3.2078,2526.0,2525.9,0.79148]
[1748876698575,22.2278,2526.0,2525.9,0.79148]
[1748876698770,3.2078,2526.0,2525.9,0.79148]
[1748876698972,22.2268,2526.0,2525.9,0.79148]
[1748876699474,3.99925,2526.0,2525.9,0.79148]
[1748876699669,23.01825,2526.0,2525.9,0.79148]
[1748876699875,22.2268,2526.0,2525.9,0.79148]
[1748876700082,23.01825,2526.0,2525.9,0.79148]
[1748876700376,22.2268,2526.0,2525.9,0.79148]
[1748876700766,0.5938,2526.1,2526.0,0.79145]
[1748876700963,20.40322,2526.1,2526.0,0.79145]
[1748876701177,19.6118,2526.1,2526.0,0.79145]
[1748876701571,19.6108,2526.1,2526.0,0.79145]
[1748876701767,19.6108,2526.1,2526.0,1.2676]
[1748876702173,1.38522,2526.1,2526.0,1.2676]
[1748876702370,1.38522,2526.1,2525.9,5.7809]
[1748876702371,0.79145,2526.0,2525.9,5.7809]
[1748876702565,0.79151,2525.8,2525.7,0.00593319]
[1748876703574,2.16331,2525.8,2525.7,0.00593319]
[1748876704778,0.79151,2525.8,2525.7,0.79747319]
[1748876704975,1.47321,2525.9,2525.8,0.79151]
[1748876705180,0.79151,2525.8,2525.7,0.79746319]
[1748876705381,19.80651,2525.8,2525.7,0.00593319]
[1748876706382,19.80651,2525.8,2525.7,0.79747319]
[1748876706986,1.3015,2525.9,2525.8,0.79151]
[1748876707285,0.5938,2526.1,2526.0,0.79145]
[1748876707486,0.5938,2526.1,2526.0,5.19145]
[1748876707682,1.38522,2526.1,2526.0,5.19145]
[1748876707984,0.5938,2526.1,2526.0,6.53185]
[1748876708786,0.5938,2526.1,2526.0,2.13185]
[1748876708982,0.5938,2526.1,2526.0,6.53185]
[1748876710283,0.00593319,2526.2,2526.1,0.79142]
[1748876710485,0.00593319,2526.2,2526.1,3.99922]
[1748876710783,0.00593319,2526.2,2526.1,8.99922]
[1748876713485,0.00593319,2526.2,2526.1,0.79142]
[1748876713691,0.00593319,2526.2,2526.1,5.19042]
[1748876715191,0.00593319,2526.2,2526.1,0.79142]
[1748876715392,0.00593319,2526.2,2526.1,5.19042]
[1748876715893,0.79145,2526.0,2525.9,4.46969789]
[1748876716185,0.79145,2526.0,2525.9,5.26117789]
[1748876716489,5.30644319,2526.2,2526.1,0.79142]
[1748876717086,4.00514319,2526.2,2526.1,0.79142]
[1748876717292,4.00512319,2526.2,2526.1,0.79142]
[1748876717491,0.79732319,2526.2,2526.1,0.79142]
[1748876717892,0.00593319,2526.2,2526.1,0.79142]
[1748876718496,0.79732319,2526.2,2526.1,0.79142]
[1748876718898,2.13912319,2526.2,2526.1,0.79142]
[1748876719092,0.79145,2526.0,2525.9,0.86216789]
[1748876719691,2.79514319,2526.2,2526.1,0.79142]
[1748876719892,0.79732319,2526.2,2526.1,0.79142]
[1748876720395,2.05402319,2526.2,2526.1,0.79142]
[1748876720591,0.79148,2525.9,2525.8,3.99929]
[1748876720797,0.79147,2526.0,2525.9,0.79147]
[1748876720994,0.79148,2525.9,2525.8,3.99928]
[1748876721194,0.79151,2525.8,2525.7,0.00593319]
[1748876721398,2.04821,2525.8,2525.7,0.00593319]
[1748876722192,2.04821,2525.8,2525.7,0.79747319]
[1748876722393,1.2567,2525.8,2525.7,0.79747319]
[1748876723099,6.22126998,2526.1,2525.7,0.00593319]
[1748876723299,19.79446,2526.0,2525.9,0.79145]
[1748876723497,0.79148,2525.9,2525.8,4.399]
[1748876723694,0.79148,2525.9,2525.8,5.19051]
[1748876723896,2.15228,2525.9,2525.8,5.19051]
[1748876724198,1.3608,2525.9,2525.8,5.19051]
[1748876724394,19.003,2526.0,2525.9,0.79148]
[1748876724701,0.79143,2526.1,2525.8,6.37776]
[1748876724889,0.79143,2526.1,2526.0,0.79142]
[1748876725088,0.79145,2526.0,2525.9,0.79145]